bitfinex-derivatives/quotes_ETHF0:USTF0_20250902
["timestamp","ask_amount","ask_price","bid_price","bid_amount"]
[1756817692455,0.9813,4291.5,4290.8,0.258]
[1756817692660,0.9813,4290.8,4290.1,0.258]
[1756817692864,3.2078,4290.3,4288.9,3.2078]
[1756817693060,0.9813,4289.0,4288.2,3.2078]
[1756817693261,1.3697,4289.0,4288.0,1.0063]
[1756817693463,0.9813,4288.9,4288.0,1.0063]
[1756817693769,0.9813,4288.2,4288.0,41.8063]
[1756817693968,3.2078,4288.4,4286.4,3.2078]
[1756817693969,0.9813,4288.3,4286.4,3.2078]
[1756817694169,3.2078,4286.6,4285.4,1.0063]
[1756817694473,0.9813,4285.4,4284.1,0.10737252]
[1756817694668,0.9813,4285.2,4284.1,0.10737252]
[1756817694873,0.1166,4285.1,4284.1,0.10737252]
[1756817695167,0.9813,4284.9,4282.4,1.0063]
[1756817695365,0.9813,4284.7,4281.6,1.0063]
[1756817695569,0.9813,4284.7,4280.7,0.22795449]
[1756817695771,0.9813,4281.5,4280.7,0.22795449]
[1756817695975,1.0613,4281.4,4281.3,11.50016625]
[1756817696167,0.08,4281.4,4280.3,12.1903142]
[1756817696365,0.26263929,4281.4,4280.3,12.1903142]
[1756817696569,0.22586547,4281.3,4279.3,1.0063]
[1756817696773,0.22586547,4281.2,4279.3,1.0063]
[1756817696972,0.22586547,4281.1,4279.3,1.0063]
[1756817697271,0.24486547,4281.0,4278.8,10.0424733]
[1756817697471,0.24586547,4280.9,4277.8,1.0063]
[1756817697671,0.22586547,4280.8,4277.8,1.0063]
[1756817697861,33.81286547,4280.7,4277.8,1.0063]
[1756817698068,0.22586547,4280.6,4277.4,1.3919]
[1756817698365,0.22586547,4280.5,4277.7,1.0063]
[1756817698570,0.22586547,4280.4,4277.7,1.0063]
[1756817698770,0.22586547,4280.3,4277.7,1.0063]
[1756817698970,0.31486547,4280.2,4277.7,1.0063]
[1756817699172,0.089,4280.2,4277.9,1.0063]
[1756817699370,0.18180098,4281.4,4277.9,1.0063]
[1756817699575,0.46397238,4281.3,4278.1,1.0063]
[1756817699776,0.20197238,4281.2,4278.7,0.42063]
[1756817700073,0.039,4281.2,4278.8,1.0063]
[1756817700275,0.23366,4281.1,4278.4,0.3856]
[1756817700473,0.20184792,4281.0,4277.4,0.3856]
[1756817700666,0.20184792,4280.9,4277.4,0.3856]
[1756817700868,0.20184792,4280.8,4277.4,0.3856]
[1756817701068,0.187184,4280.7,4277.4,0.3856]
[1756817701264,0.22410234,4280.6,4277.4,0.3856]
[1756817701470,0.037,4280.6,4277.4,0.3856]
[1756817701867,0.23669,4280.5,4277.4,0.3856]
[1756817702066,0.23669,4280.5,4275.6,0.3856]
[1756817702067,0.003,4280.4,4276.7,1.0063]
[1756817702272,0.18593561,4280.3,4277.6,10.4268423]
[1756817702472,4.23370001,4280.3,4275.6,0.3856]
[1756817702672,0.003,4280.4,4276.4,1.0063]
[1756817702673,0.23374,4280.2,4276.4,1.0063]
[1756817702870,0.23411487,4280.1,4275.6,0.3856]
[1756817703075,0.23411487,4280.1,4274.9,0.3856]
[1756817703076,0.782,4279.9,4274.9,0.3856]
[1756817703275,0.782,4279.1,4274.9,0.3856]
[1756817703576,0.782,4278.9,4274.9,0.3856]
[1756817703775,0.782,4278.7,4274.9,0.3856]
[1756817704071,0.782,4278.5,4275.0,0.265]
[1756817704276,0.0407119,4278.6,4276.3,0.42085]
[1756817704477,0.79843939,4278.5,4276.4,0.013]
[1756817704672,0.003,4278.6,4276.4,0.013]
[1756817704673,0.79843939,4278.4,4276.4,0.013]
[1756817704873,0.79843939,4278.3,4276.5,0.266]
[1756817705168,0.79843939,4278.2,4276.6,1.0063]
[1756817705377,0.782,4278.8,4276.5,0.266]
[1756817705378,0.138,4278.9,4277.7,1.0063]
[1756817705676,1.55737599,4281.5,4277.7,1.0063]
[1756817705677,1.16803199,4280.4,4278.1,0.42068]
[1756817705875,1.55737599,4281.9,4280.0,0.3856]
[1756817706075,1.55737599,4282.3,4280.2,1.0063]
[1756817706374,0.9813,4282.7,4280.2,1.0063]
[1756817706879,1.55737599,4285.4,4281.6,0.42033]
[1756817707076,0.9813,4284.4,4281.8,0.3174]
[1756817707277,0.9813,4284.4,4282.1,0.42029]
[1756817707468,0.9813,4284.4,4280.8,10.51041]
[1756817707469,0.9813,4285.7,4282.6,0.42024]
[1756817707669,0.9813,4285.2,4282.4,0.42026]
[1756817707881,0.097,4286.2,4282.7,0.268]
[1756817708076,0.3884,4286.7,4282.8,4.0]
[1756817708277,0.3884,4286.7,4283.7,0.42013]
[1756817708472,0.3884,4286.7,4284.3,0.42007]
[1756817708670,0.9813,4286.9,4283.8,33.91]
[1756817708671,0.9813,4286.9,4284.8,0.1601]
[1756817708870,0.9813,4287.8,4285.4,0.41996]
[1756817709076,0.9813,4287.8,4284.3,0.19101708]
[1756817709077,0.3884,4288.5,4286.1,0.4199]
[1756817709378,0.3884,4288.5,4286.4,0.1877]
[1756817709575,0.9945,4288.4,4286.4,0.1877]
[1756817709971,0.9945,4288.4,4283.9,0.1877]
[1756817710183,0.9945,4288.4,4282.3,10.50674]
[1756817710184,0.9945,4288.2,4284.4,0.1877]
[1756817710381,0.9945,4288.2,4286.1,0.1877]
[1756817710574,0.6584,4288.5,4286.0,40.8]
[1756817710777,0.9945,4288.4,4285.1,0.27]
[1756817710976,0.9945,4288.2,4285.2,0.1877]
[1756817711175,0.9945,4288.2,4285.4,0.1877]
[1756817711377,0.9945,4288.2,4285.4,0.18315757]
[1756817711577,0.9945,4288.2,4285.5,0.271]
[1756817711778,0.9945,4288.2,4285.3,33.633]
[1756817711975,0.3884,4288.5,4285.4,0.271]
[1756817712182,0.9945,4288.4,4285.8,0.41993]
[1756817712382,0.9945,4289.0,4286.3,0.41988]
[1756817712677,0.9945,4289.3,4285.4,33.63]
[1756817712880,0.9945,4287.9,4285.4,0.039]
[1756817713076,0.9945,4287.7,4285.4,0.039]
[1756817713277,0.9945,4287.7,4284.8,0.003]
[1756817713479,0.9945,4287.7,4283.9,40.8]
[1756817713480,0.9945,4287.7,4284.7,0.1832]
[1756817713676,0.099,4287.6,4284.7,0.1832]
[1756817713886,0.9945,4287.5,4284.7,0.1832]
[1756817714087,0.9945,4287.5,4284.5,0.017]
[1756817714282,0.9945,4287.5,4284.1,0.1832]
[1756817714475,0.9945,4287.5,4283.9,40.8]
[1756817714476,0.9945,4287.5,4284.3,0.1832]
[1756817714881,0.9945,4287.5,4284.4,0.018]
[1756817715180,0.9945,4287.5,4284.5,0.019]
[1756817715380,0.9945,4287.5,4284.6,0.177]
[1756817716380,0.1,4287.4,4284.6,0.177]
[1756817716579,0.9945,4287.3,4284.7,0.016]
[1756817716881,0.9945,4287.3,4284.8,0.177]
[1756817717082,0.9945,4287.8,4284.0,0.177]
[1756817717282,0.9945,4287.8,4284.6,0.016]
[1756817717485,33.623,4287.9,4283.9,40.984]
[1756817717486,0.71017859,4287.7,4283.9,40.984]
[1756817717681,0.9945,4287.5,4282.1,0.23231615]
[1756817717876,1.55737599,4286.5,4282.3,0.184]
[1756817718078,0.9945,4286.3,4282.3,0.184]
[1756817718278,0.4188,4286.0,4282.5,0.184]
[1756817718480,1.67106828,4285.9,4282.6,0.011]
[1756817718683,0.71017859,4285.8,4282.7,0.2176]
[1756817718985,0.71017859,4285.7,4282.8,0.021]
[1756817719190,0.71017859,4285.6,4282.8,0.022]
[1756817719388,0.71017859,4285.5,4282.8,0.022]
[1756817719592,0.71017859,4285.4,4282.7,0.2176]
[1756817719790,0.71017859,4285.4,4282.4,40.8]
[1756817719791,0.71017859,4285.3,4282.4,40.8]
[1756817720087,0.71017859,4285.2,4282.4,40.8]
[1756817720386,0.71017859,4285.1,4282.3,0.273]
[1756817720578,0.71017859,4285.1,4282.0,0.2176]
[1756817720579,0.9945,4284.8,4282.0,0.2636]
[1756817720784,0.71017859,4284.7,4282.1,40.8]
[1756817720979,0.4188,4284.9,4282.1,40.8]
[1756817720980,0.9945,4284.5,4282.1,40.8]
[1756817721185,0.9945,4284.3,4281.7,33.892]
[1756817721381,0.81717859,4284.4,4281.3,0.2176]
[1756817721382,0.4188,4284.0,4281.3,0.2176]
[1756817721685,0.9945,4283.8,4281.1,0.02]
[1756817721885,0.71017859,4283.7,4281.1,0.02]
[1756817722089,1.70467859,4283.6,4280.4,0.2176]
[1756817722279,0.71017859,4283.5,4280.5,0.23352]
[1756817722479,1.70467859,4283.4,4280.9,0.42041]
[1756817722684,0.71017859,4283.3,4280.7,0.2176]
[1756817722886,0.71017859,4283.2,4281.8,0.2176]
[1756817723086,0.71017859,4283.1,4282.0,0.2176]
[1756817723288,0.71017859,4283.0,4282.1,0.273]
[1756817723488,0.71017859,4282.9,4282.1,0.273]
[1756817723691,0.71017859,4282.8,4282.1,0.273]
[1756817723879,0.49257859,4282.7,4282.1,4.0]
[1756817724077,0.1167,4283.4,4281.9,33.623]
[1756817724278,0.1167,4283.4,4282.0,0.273]
[1756817724488,2.55187599,4282.9,4282.1,0.273]
[1756817724988,0.1167,4283.4,4282.2,4.0]
[1756817725186,0.9945,4286.3,4282.3,11.55759]
[1756817725491,0.9945,4286.3,4283.0,1.05051]
[1756817725785,0.9945,4286.3,4284.0,0.4201]
[1756817725983,0.9945,4286.3,4282.7,1.05057]
[1756817725984,0.1167,4285.2,4284.1,0.04]
[1756817726184,0.4188,4285.8,4283.1,0.42018]
[1756817726385,0.1167,4284.8,4283.2,0.274]
[1756817726586,1.4133,4284.9,4283.3,0.04]
[1756817726787,0.1167,4284.7,4284.4,3.2078]
[1756817727283,0.4188,4284.9,4284.4,3.2078]
[1756817727485,0.1167,4284.5,4283.9,3.2078]
[1756817727684,0.9945,4284.6,4283.9,3.2078]
[1756817727896,0.9945,4284.6,4284.5,3.2078]
[1756817728087,0.4188,4284.9,4284.3,0.274]
[1756817728290,0.1167,4284.4,4284.0,44.0078]
[1756817728686,0.4188,4284.9,4284.0,44.0078]
[1756817728991,0.1167,4284.9,4284.5,3.2078]
[1756817729187,0.1167,4284.7,4284.6,0.274]
[1756817729489,0.9945,4284.8,4284.0,44.0078]
[1756817729689,0.1167,4284.4,4284.1,0.274]
[1756817729890,0.1167,4284.1,4284.0,3.2078]
[1756817730087,0.1167,4284.2,4284.0,3.2078]
[1756817730279,1.1112,4284.1,4283.4,0.274]
[1756817730485,1.1112,4283.5,4282.9,3.2078]
[1756817730678,1.1112,4283.0,4282.9,3.2078]
[1756817730891,0.4188,4282.2,4281.6,3.4818]
[1756817731088,0.9945,4282.9,4282.1,3.2078]
[1756817732783,0.4188,4283.1,4282.6,3.2078]
[1756817732981,0.9945,4283.0,4282.7,0.273]
[1756817733289,0.9945,4283.0,4282.3,0.273]
[1756817733492,3.2078,4282.9,4282.3,0.273]
[1756817733884,3.2078,4282.9,4281.9,0.273]
[1756817734194,0.4188,4282.2,4281.9,0.273]
[1756817734384,0.9945,4282.8,4281.9,0.273]
[1756817734385,3.2078,4282.7,4281.9,0.273]
[1756817734584,0.9945,4282.8,4281.9,0.273]
[1756817734784,0.9945,4282.8,4281.5,44.0078]
[1756817735088,0.4188,4282.4,4281.6,0.273]
[1756817735288,1.4133,4282.4,4281.5,44.0078]
[1756817735598,1.4133,4282.4,4281.6,0.273]
[1756817735981,0.62433639,4282.3,4281.6,0.273]
[1756817736185,0.62433639,4282.2,4281.7,0.273]
[1756817736488,0.62433639,4282.1,4281.7,0.273]
[1756817736684,0.4188,4282.4,4281.1,0.273]
[1756817736685,0.9945,4281.5,4281.1,0.273]
[1756817736879,0.9945,4281.3,4281.1,0.273]
[1756817737086,0.62433639,4281.2,4280.5,40.8]
[1756817737294,0.62433639,4281.1,4280.6,0.273]
[1756817737484,0.62433639,4281.0,4280.6,0.273]
[1756817737680,0.62433639,4280.9,4280.6,0.273]
[1756817737884,0.62433639,4280.8,4280.6,0.69343]
[1756817738085,0.62433639,4280.7,4280.6,0.69343]
[1756817738289,0.62433639,4280.7,4280.6,0.273]
[1756817738485,0.62433639,4280.7,4280.6,4.273]
[1756817738792,0.9945,4280.6,4280.5,40.8]
[1756817738982,0.62433639,4280.6,4279.9,3.2078]
[1756817739188,0.4188,4280.8,4279.6,0.274]
[1756817739189,0.3856,4280.0,4279.6,0.274]
[1756817739392,0.62433639,4279.9,4279.8,3.2078]
[1756817739984,0.62433639,4279.9,4279.1,33.627]
[1756817739985,1.65783639,4279.9,4279.3,3.2078]
[1756817740188,0.62433639,4279.8,4279.4,0.274]
[1756817740387,0.62433639,4279.7,4279.4,0.274]
[1756817740587,0.3856,4280.0,4278.7,40.8]
[1756817740588,0.3856,4279.2,4278.7,41.074]
[1756817740792,0.62433639,4279.1,4278.7,0.274]
[1756817741087,0.62433639,4279.0,4278.7,3.4818]
[1756817741292,1.0335,4278.8,4278.7,44.2818]
[1756817741493,1.65783639,4278.8,4278.7,3.4818]
[1756817741688,0.62433639,4278.8,4278.7,3.4818]
[1756817742488,1.65783639,4278.8,4278.2,3.4808]
[1756817742795,1.0335,4278.6,4278.2,3.4808]
[1756817742998,0.62433639,4278.5,4278.2,3.4808]
[1756817743188,0.3856,4279.2,4277.7,3.2078]
[1756817743189,1.00993639,4278.4,4277.7,3.2078]
[1756817743394,1.00993639,4278.4,4277.4,0.273]
[1756817743395,1.65783639,4278.3,4277.4,0.273]
[1756817743588,0.62433639,4278.2,4277.5,0.273]
[1756817743793,0.62433639,4278.1,4277.5,0.273]
[1756817744089,1.65783639,4278.0,4277.5,0.273]
[1756817744289,0.62433639,4277.9,4277.5,0.273]
[1756817744495,0.62433639,4277.8,4277.7,3.2078]
[1756817744695,0.62433639,4277.8,4277.7,3.4808]
[1756817744896,1.65783639,4277.8,4277.7,3.4808]
[1756817745597,0.62433639,4277.8,4277.7,7.4808]
[1756817745795,1.4191,4278.4,4277.7,48.2808]
[1756817745990,0.3856,4279.2,4278.3,3.2078]
[1756817745991,1.0335,4279.1,4278.3,3.2078]
[1756817746193,1.0335,4278.9,4278.8,3.2078]
[1756817746395,0.61155351,4278.9,4278.8,3.4798]
[1756817746587,0.61155351,4279.1,4278.8,3.4798]
[1756817747387,1.64505351,4279.1,4278.8,3.4798]
[1756817747595,0.272,4280.5,4278.8,3.4798]
[1756817747596,0.61155351,4279.0,4278.8,3.4798]
[1756817747890,1.0335,4279.7,4278.8,3.4798]
[1756817748093,0.61178549,4279.6,4278.8,3.4798]
[1756817748291,1.64528549,4279.5,4278.8,3.4798]
[1756817748503,1.64528549,4279.5,4278.9,0.272]
[1756817748504,0.61178549,4279.4,4278.9,0.272]
[1756817748796,0.61178549,4279.4,4278.8,3.2078]
[1756817749001,1.0335,4279.2,4278.9,0.272]
[1756817749194,3.2078,4279.9,4278.9,0.272]
[1756817749195,1.0335,4279.0,4278.9,0.272]
[1756817749390,0.3856,4278.4,4278.3,0.272]
[1756817749594,0.99319413,4278.4,4278.3,0.272]
[1756817749899,0.60759413,4278.4,4278.3,0.272]
[1756817750094,0.60759413,4278.9,4278.3,0.272]
[1756817750296,1.0335,4278.3,4278.2,3.2078]
[1756817750607,0.3856,4279.1,4278.2,3.2078]
[1756817750895,1.4191,4280.0,4278.7,3.2078]
[1756817751204,1.0335,4279.8,4278.9,3.2078]
[1756817751493,0.60768789,4279.7,4279.0,41.072]
[1756817751693,1.0335,4280.4,4279.5,3.2078]
[1756817751996,0.60764508,4280.3,4279.6,0.272]
[1756817752196,0.60764508,4280.2,4279.6,0.272]
[1756817752497,1.0335,4280.4,4279.6,0.272]
[1756817752703,0.60784645,4280.3,4279.6,0.272]
[1756817752904,0.60788011,4280.2,4279.2,3.2078]
[1756817753194,1.0335,4280.3,4279.3,0.272]
[1756817753400,1.0335,4280.3,4279.4,0.9854]
[1756817753799,4.2413,4280.9,4279.4,0.9854]
[1756817754500,4.2413,4280.9,4279.5,0.272]
[1756817754700,3.2078,4279.9,4279.2,3.2078]
[1756817755002,1.0335,4279.8,4279.0,40.8]
[1756817755500,1.0335,4279.8,4278.6,3.2078]
[1756817755501,1.0335,4279.8,4279.1,0.271]
[1756817756102,1.0335,4279.7,4278.7,40.8]
[1756817756400,1.0335,4279.7,4278.8,0.271]
[1756817756899,1.0335,4279.7,4278.7,0.271]
[1756817757506,1.0335,4279.7,4278.8,0.9854]
[1756817757800,3.2078,4280.4,4278.8,0.9854]
[1756817757801,3.2078,4280.4,4279.8,0.42051]
[1756817757993,4.2413,4281.4,4280.4,0.9854]
[1756817758397,4.2413,4281.4,4280.5,41.071]
[1756817760204,1.0335,4281.3,4280.5,40.8]
[1756817760500,1.0335,4280.8,4279.9,0.27]
[1756817760701,3.2078,4281.4,4280.2,0.9854]
[1756817760906,1.0335,4281.3,4280.3,40.8]
[1756817761104,0.51355658,4281.2,4280.4,0.271]
[1756817761307,4.2413,4282.0,4280.5,0.9854]
[1756817761499,0.51396352,4281.9,4280.5,0.9854]
[1756817761696,0.51396352,4281.8,4280.5,0.9854]
[1756817761903,4.2413,4282.0,4280.6,3.2078]
[1756817762100,4.2413,4282.0,4280.7,0.27]
[1756817762300,4.2413,4282.0,4280.6,3.2078]
[1756817762301,1.0335,4281.4,4280.1,3.2078]
[1756817762609,1.0335,4281.4,4280.2,1.2554]
[1756817763403,4.2413,4282.0,4280.5,0.9854]
[1756817763604,4.2413,4282.0,4280.8,3.2078]
[1756817763803,1.0335,4281.6,4280.2,1.2554]
[1756817764010,1.0335,4281.6,4280.3,0.27]
[1756817764606,1.0335,4281.1,4280.1,3.2078]
[1756817764798,4.2413,4280.4,4279.6,0.9854]
[1756817765006,4.2413,4280.4,4279.6,0.271]
[1756817765304,0.3856,4281.6,4279.6,0.271]
[1756817765305,4.2413,4280.9,4279.7,0.9854]
[1756817765619,0.51511933,4280.8,4279.6,3.2078]
[1756817765808,3.2078,4280.4,4279.8,0.271]
[1756817766507,1.0335,4280.2,4279.1,3.2078]
[1756817766711,3.2078,4279.6,4279.2,0.27]
[1756817767007,3.2078,4279.6,4278.6,3.2078]
[1756817767208,0.51540929,4279.5,4278.6,3.2078]
[1756817767406,1.0335,4279.0,4278.3,0.27]
[1756817768907,3.2078,4278.6,4277.3,4.1932]
[1756817769210,0.9731,4278.5,4277.4,41.07]
[1756817769413,0.9731,4278.5,4277.5,0.9493]
[1756817769606,0.9731,4279.1,4277.9,0.9493]
[1756817769804,0.9731,4279.1,4278.1,0.9493]
[1756817770599,3.2078,4279.2,4278.3,3.2078]
[1756817770804,3.2078,4279.2,4278.5,0.9493]
[1756817771607,0.9731,4279.7,4278.5,0.9493]
[1756817771807,3.2078,4279.5,4278.5,0.9493]
[1756817772010,3.2078,4279.5,4278.6,0.27]
[1756817772210,0.9731,4279.4,4278.3,3.2078]
[1756817772513,3.2078,4279.5,4277.8,0.269]
[1756817772514,4.1809,4278.5,4277.8,0.269]
[1756817772706,0.9731,4278.4,4277.7,3.2078]
[1756817773508,0.269,4278.8,4277.3,0.9493]
[1756817773509,3.2078,4277.9,4277.6,0.269]
[1756817773712,0.269,4278.8,4277.6,0.269]
[1756817773713,0.9731,4278.3,4277.6,0.269]
[1756817774512,4.1809,4278.3,4277.6,0.269]
[1756817774814,3.2078,4278.8,4277.7,0.9493]
[1756817775013,3.2078,4278.8,4277.6,0.269]
[1756817775014,0.9731,4278.7,4277.6,0.269]
[1756817775210,3.2078,4278.2,4277.6,0.269]
[1756817775603,3.2078,4279.3,4278.1,3.2078]
[1756817775809,3.2078,4281.0,4279.2,44.0078]
[1756817776010,3.2078,4280.9,4279.8,0.9493]
[1756817776209,0.9731,4281.4,4279.9,0.269]
[1756817776407,0.9731,4281.4,4279.8,0.9493]
[1756817776712,0.5147576,4281.3,4279.2,41.7493]
[1756817776911,3.5886,4281.0,4279.4,3.2078]
[1756817777113,0.9731,4280.9,4279.4,3.2078]
[1756817777613,0.9731,4280.9,4279.5,0.9493]
[1756817777813,0.9731,4280.9,4279.4,3.2078]
[1756817778019,0.9731,4280.3,4279.3,0.269]
[1756817778411,0.9731,4279.8,4279.3,0.269]
[1756817778918,0.9731,4279.8,4279.2,40.8]
[1756817779115,0.9731,4279.7,4278.5,33.659]
[1756817779312,0.1168,4279.6,4278.6,0.269]
[1756817779508,0.1168,4279.6,4278.7,40.8]
[1756817779715,0.1168,4279.6,4278.8,0.9493]
[1756817780206,0.9731,4279.5,4278.7,40.8]
[1756817780413,0.9731,4279.5,4278.8,0.268]
[1756817780618,0.9731,4279.5,4278.7,40.8]
[1756817780812,0.9731,4279.5,4278.8,0.268]
[1756817782206,0.1168,4279.6,4278.4,3.2078]
[1756817782207,0.9731,4279.1,4278.4,3.2078]
[1756817782608,0.1168,4279.6,4278.4,3.2078]
[1756817782812,0.9731,4279.2,4278.4,3.4758]
[1756817783012,0.9731,4278.7,4277.9,3.2078]
[1756817783218,3.2078,4278.8,4277.9,3.2078]
[1756817783219,0.3808,4278.6,4277.9,3.2078]
[1756817783418,0.9731,4278.5,4277.9,3.2078]
[1756817784217,0.3808,4278.6,4277.9,3.2078]
[1756817784608,0.9731,4277.9,4277.5,0.268]
[1756817784821,0.3808,4278.0,4277.5,0.268]
[1756817785117,0.9731,4279.7,4278.0,0.9493]
[1756817785412,3.2078,4280.0,4278.1,3.4758]
[1756817785615,0.9731,4279.5,4278.2,0.9493]
[1756817785813,0.9731,4279.5,4278.7,4.1571]
[1756817786014,3.2078,4280.0,4279.2,3.2078]
[1756817786220,3.2078,4280.0,4279.3,0.268]
[1756817786620,0.9731,4279.5,4279.2,3.4758]
[1756817786810,3.2078,4280.0,4279.1,0.268]
[1756817787014,0.9731,4279.5,4278.6,3.2078]
[1756817787213,0.9731,4279.4,4278.1,3.2078]
[1756817787417,0.9731,4279.4,4278.4,0.268]
[1756817787819,0.9731,4279.4,4278.6,3.2078]
[1756817788813,3.2078,4279.4,4278.3,0.268]
[1756817789013,3.2078,4278.9,4278.0,3.2078]
[1756817789214,0.9731,4278.8,4278.0,3.2078]
[1756817789921,3.4758,4279.4,4278.0,3.2078]
[1756817789922,3.2078,4279.4,4278.0,3.2078]
[1756817790230,0.9731,4279.5,4278.5,3.2078]
[1756817790526,0.9731,4279.5,4278.6,0.268]
[1756817790819,0.9731,4279.5,4278.5,4.46128982]
[1756817791019,0.9731,4279.5,4277.0,2.06999792]
[1756817791020,3.2078,4278.7,4278.2,1.25348982]
[1756817791221,0.7711317,4278.6,4276.8,0.3789]
[1756817791423,3.2078,4277.1,4276.8,1.3282]
[1756817791623,3.2078,4277.1,4276.8,0.3789]
[1756817791824,3.4778,4277.8,4276.9,0.9493]
[1756817792420,3.2078,4277.8,4276.9,0.9493]
[1756817793021,3.2078,4277.8,4277.4,0.3789]
[1756817793226,3.2078,4277.8,4277.5,0.9493]
[1756817793629,3.2078,4278.3,4277.5,0.9493]
[1756817794425,3.2078,4278.3,4278.1,0.9493]
[1756817795222,3.2078,4278.3,4278.0,0.3789]
[1756817795421,3.2078,4279.3,4278.3,0.9493]
[1756817795628,3.2078,4279.9,4279.3,0.9493]
[1756817796125,3.2078,4279.4,4279.2,0.3789]
[1756817796526,3.2078,4279.4,4279.3,0.9493]
[1756817796824,3.2078,4279.4,4278.7,41.7493]
[1756817797232,3.2078,4279.4,4279.3,0.9493]
[1756817799628,3.2078,4279.4,4278.7,40.79978413]
[1756817799824,0.269,4279.3,4278.7,40.79978413]
[1756817800034,3.2078,4278.8,4278.0,1.3699]
[1756817800734,3.2078,4278.1,4278.0,1.3699]
[1756817801526,3.4768,4278.1,4277.4,0.3789]
[1756817801726,3.4768,4278.1,4277.4,1.3699]
[1756817801727,3.2078,4277.5,4277.4,1.3699]
[1756817801928,3.2078,4277.5,4277.4,42.1699]
[1756817802524,3.2078,4277.5,4277.4,1.3699]
[1756817803934,3.2078,4277.8,4277.4,0.3789]
[1756817804135,3.2078,4278.3,4278.1,0.991]
[1756817804345,0.1279,4279.5,4278.2,3.2078]
[1756817804346,3.2078,4279.2,4278.2,3.2078]
[1756817804633,3.2078,4279.2,4278.3,0.991]
[1756817804832,3.2078,4279.2,4278.5,0.991]
[1756817805027,3.2078,4279.2,4278.6,40.8]
[1756817805729,0.1168,4279.5,4278.7,4.1988]
[1756817806034,0.1168,4279.5,4278.9,0.991]
[1756817807437,3.2078,4279.8,4278.9,0.991]
[1756817808234,3.2078,4280.5,4279.2,3.2078]
[1756817808433,3.4758,4280.5,4279.4,0.991]
[1756817808633,3.2078,4280.5,4279.4,0.991]
[1756817808829,0.1168,4280.4,4279.4,0.991]
[1756817809231,0.1168,4280.4,4279.8,0.991]
[1756817809433,0.1168,4280.4,4280.3,4.1988]
[1756817809730,0.1168,4280.4,4280.3,4.4658]
[1756817810132,0.1168,4280.4,4280.3,45.2658]
[1756817811034,0.1168,4280.4,4280.3,42.058]
[1756817814137,0.1168,4280.4,4280.3,49.2658]
[1756817815031,0.9765,4282.5,4280.5,0.4131]
[1756817815240,0.9765,4282.5,4281.6,0.991]
[1756817815440,0.9765,4282.5,4281.7,0.266]
[1756817815633,0.9765,4282.5,4281.8,40.8]
[1756817816031,3.2078,4282.1,4281.8,40.8]
[1756817816340,0.9765,4281.7,4281.4,0.266]
[1756817816539,0.9765,4282.0,4281.4,0.266]
[1756817816734,0.9765,4282.0,4281.4,41.066]
[1756817816929,3.2078,4282.1,4281.4,41.066]
[1756817817138,0.9765,4282.0,4281.4,0.266]
[1756817817834,3.2078,4281.6,4281.4,0.266]
[1756817818144,0.9765,4281.5,4281.4,0.266]
[1756817818346,0.9765,4281.5,4280.3,0.991]
[1756817818551,0.9765,4280.9,4280.2,0.265]
[1756817819841,0.9765,4280.9,4279.7,41.791]
[1756817819842,0.266,4280.8,4279.7,41.791]
[1756817820144,3.2078,4280.5,4279.7,41.791]
[1756817820648,3.2078,4280.5,4280.1,0.991]
[1756817820853,3.2078,4280.5,4280.2,0.265]
[1756817821145,0.3943,4282.0,4280.7,0.991]
[1756817821146,0.9765,4282.0,4280.7,0.991]
[1756817821347,0.265,4282.8,4281.5,3.2078]
[1756817821545,1.4875,4282.5,4281.6,0.266]
[1756817822954,0.1167,4282.5,4282.1,0.991]
[1756817823156,0.1167,4282.5,4282.3,3.2078]
[1756817823345,0.9765,4282.9,4282.2,0.265]
[1756817823548,0.9765,4282.9,4280.7,33.648]
[1756817823549,3.2078,4282.3,4281.8,0.083]
[1756817823747,0.9765,4282.2,4281.8,0.083]
[1756817824048,0.9765,4281.9,4281.8,0.083]
[1756817825551,0.9765,4282.2,4281.8,0.083]
[1756817825960,3.2078,4282.3,4281.9,0.991]
[1756817826158,0.9765,4282.2,4281.8,0.083]
[1756817826653,3.2078,4282.3,4281.8,0.083]
[1756817826956,0.1167,4282.4,4281.8,1.074]
[1756817828254,0.1167,4282.4,4281.9,0.264]
[1756817828449,0.9765,4282.3,4281.9,0.264]
[1756817828653,0.1167,4282.4,4282.2,3.2078]
[1756817828843,3.2078,4283.1,4282.3,1.005]
[1756817829250,0.9829,4283.4,4282.7,3.2078]
[1756817829448,0.9829,4283.4,4282.8,0.264]
[1756817829655,0.3943,4283.5,4282.4,40.8]
[1756817829850,0.4,4283.0,4282.5,0.264]
[1756817830051,0.9829,4282.9,4282.5,0.264]
[1756817830252,0.4,4283.0,4282.5,0.264]
[1756817830456,0.9829,4282.9,4282.5,0.264]
[1756817830851,0.4,4283.0,4282.2,3.2078]
[1756817831053,0.4,4283.0,4282.5,0.264]
[1756817831259,0.9829,4282.9,4282.5,0.264]
[1756817831557,0.4,4283.0,4282.5,0.264]
[1756817831753,0.9829,4282.9,4282.5,0.264]
[1756817832155,0.4,4283.0,4282.5,0.264]
[1756817832361,0.9829,4282.9,4282.5,0.264]